bitfinex-derivatives/quotes_ETHF0:USTF0_20220103
["timestamp","ask_amount","ask_price","bid_price","bid_amount"]
[1641221209879,4.76985142,3826.2,3825.2,2.00479]
[1641221210680,3.46331771,3826.2,3825.2,2.00479]
[1641221218583,3.46331771,3826.2,3824.9,2.00479]
[1641221218781,3.46331771,3826.2,3820.0,24.38109414]
[1641221218782,2.80699477,3825.0,3823.2,5.2581]
[1641221218981,3.0,3824.9,3823.2,5.2581]
[1641221219184,1.5,3824.7,3823.1,0.85498988]
[1641221219381,2.00479,3823.2,3823.1,0.85498988]
[1641221219583,2.53409,3823.2,3823.1,1.21313788]
[1641221219982,0.613,3824.2,3823.1,2.71313788]
[1641221220183,32.2312,3824.7,3823.1,2.71313788]
[1641221220381,0.6582,3825.0,3823.1,1.21313788]
[1641221220784,1.32272824,3825.0,3823.1,1.21313788]
[1641221220987,1.32272824,3825.0,3823.1,0.358148]
[1641221221385,2.00479,3824.2,3823.3,2.00479]
[1641221221583,0.128157,3824.1,3823.3,2.00479]
[1641221221783,1.17819008,3824.1,3823.3,2.00479]
[1641221223483,2.00479,3823.6,3822.9,2.00479]
[1641221223884,2.00479,3823.6,3822.4,2.00479]
[1641221224684,2.00479,3823.6,3821.7,31.4272]
[1641221224885,2.00479,3823.6,3821.7,32.9272]
[1641221225485,2.00479,3823.0,3822.2,2.00479]
[1641221225685,2.00479,3823.6,3822.7,1.5]
[1641221225987,2.00479,3823.6,3822.3,0.128157]
[1641221226986,3.0,3823.2,3822.2,2.00479]
[1641221227385,2.00479,3823.0,3822.2,2.00479]
[1641221227588,0.128157,3822.9,3822.6,1.41840011]
[1641221227787,2.00479,3823.0,3822.6,1.41840011]
[1641221227987,0.87027741,3823.4,3822.6,1.41840011]
[1641221228488,0.87027741,3823.2,3822.5,0.39157776]
[1641221228986,1.77074775,3823.2,3822.5,0.39157776]
[1641221229387,2.00479,3823.1,3822.5,0.39157776]
[1641221229586,2.132947,3823.1,3822.5,0.39157776]
[1641221230290,2.132947,3823.1,3822.6,1.41840011]
[1641221231893,3.00322441,3823.1,3822.4,1.41840011]
[1641221232294,2.87506741,3823.1,3822.4,2.91840011]
[1641221232495,0.87027741,3823.1,3822.4,2.91840011]
[1641221232694,0.87027741,3823.1,3822.6,1.30701015]
[1641221232894,0.87027741,3823.0,3822.6,1.85921015]
[1641221233294,0.87027741,3823.0,3822.6,1.98736715]
[1641221233494,0.87027741,3823.0,3822.8,2.00479]
[1641221233698,0.90047034,3823.2,3822.9,0.229991]
[1641221233894,0.90047034,3823.2,3823.0,1.5]
[1641221234094,0.90047034,3823.2,3822.9,1.41840011]
[1641221234295,0.90047034,3823.2,3822.9,2.91840011]
[1641221234494,2.00479,3823.6,3823.0,0.229991]
[1641221234695,2.00479,3823.6,3823.0,1.53685425]
[1641221234896,2.132947,3823.6,3823.0,1.30686325]
[1641221235295,2.132947,3823.6,3823.0,1.69844101]
[1641221235497,2.00479,3823.6,3823.0,3.11684112]
[1641221235894,2.00479,3823.6,3823.0,1.80997787]
[1641221236696,2.00479,3823.6,3823.1,0.39157776]
[1641221236896,0.128157,3823.5,3823.1,0.39157776]
[1641221237797,0.128157,3823.5,3822.9,0.39157776]
[1641221237995,1.14252778,3823.5,3822.9,0.39157776]
[1641221238396,4.14252778,3823.5,3822.9,0.39157776]
[1641221238798,0.55492048,3823.4,3822.6,1.41840011]
[1641221238997,1.17062048,3823.4,3822.6,1.54655711]
[1641221239401,1.30754848,3823.2,3822.6,1.41840011]
[1641221239600,2.00479,3823.1,3822.6,1.41840011]
[1641221240202,3.16168149,3823.1,3822.2,3.31194708]
[1641221241103,3.77028149,3823.1,3822.2,2.00479]
[1641221241503,3.77028149,3823.1,3821.2,2.84145686]
[1641221241504,1.5,3822.8,3821.2,2.84145686]
[1641221241705,1.5,3822.8,3821.1,1.30750745]
[1641221242403,3.0,3822.6,3821.1,1.30750745]
[1641221242703,3.0,3822.6,3820.4,1.30776906]
[1641221242704,11.24,3822.5,3820.4,1.30776906]
[1641221242903,3.0,3821.9,3820.4,1.30776906]
[1641221243103,0.7156,3821.9,3819.8,0.5491]
[1641221243303,0.7156,3821.9,3820.0,1.30790932]
[1641221243504,2.72039,3821.9,3821.0,2.00479]
[1641221243705,0.128157,3821.8,3821.0,2.00479]
[1641221243905,0.128157,3821.8,3821.1,0.128157]
[1641221244104,1.25434287,3821.8,3821.0,2.00479]
[1641221244503,3.0,3821.2,3819.6,64.0498]
[1641221244703,1.5,3821.1,3819.6,31.5572]
[1641221244905,13.4667,3821.1,3819.1,1.30821046]
[1641221245103,1.5,3820.9,3819.1,1.30821046]
[1641221245504,2.00479,3820.4,3819.5,2.00479]
[1641221245702,0.128157,3820.3,3819.5,2.00479]
[1641221245903,0.904257,3820.3,3819.5,2.132947]
[1641221246104,1.62597818,3820.3,3819.5,2.132947]
[1641221246905,1.62597818,3820.3,3819.5,2.00479]
[1641221249307,3.0,3820.0,3819.5,2.00479]
[1641221249507,2.00479,3819.7,3819.1,2.00479]
[1641221250010,0.78571077,3818.2,3817.3,1.41840011]
[1641221250207,3.0,3817.5,3817.3,1.41840011]
[1641221250411,3.0,3817.7,3817.3,1.64839111]
[1641221250609,1.32591077,3818.2,3817.3,1.41840011]
[1641221250809,0.98438726,3818.2,3817.6,1.5]
[1641221251008,32.235,3819.6,3817.5,0.5491]
[1641221251207,35.235,3819.6,3817.5,0.6745]
[1641221251407,32.235,3819.6,3817.5,0.6745]
[1641221251612,2.00479,3818.4,3817.5,2.67929]
[1641221252908,3.14984396,3818.4,3817.5,2.67929]
[1641221254115,3.14984396,3818.4,3817.5,4.17929]
[1641221254514,3.14984396,3818.4,3817.5,2.67929]
[1641221254716,0.128157,3818.3,3817.5,0.6745]
[1641221254916,0.128157,3818.3,3817.1,0.128157]
[1641221255118,3.14984396,3818.4,3817.1,1.628157]
[1641221255316,3.14984396,3818.4,3817.1,0.128157]
[1641221255717,2.00479,3817.7,3817.1,0.128157]
[1641221257717,0.5435,3818.9,3817.1,0.128157]
[1641221257917,0.5491,3819.3,3817.6,1.5]
[1641221258117,33.54376519,3819.6,3817.6,1.5]
[1641221258318,32.235,3819.6,3818.1,1.5]
[1641221258517,30.6108,3820.0,3818.1,0.7603]
[1641221259718,2.00479,3818.9,3818.1,2.00479]
[1641221259917,2.00479,3818.9,3818.2,0.128157]
[1641221260119,2.00479,3818.9,3818.2,0.819357]
[1641221260320,2.00479,3819.3,3818.2,0.819357]
[1641221260721,1.0174996,3820.0,3818.8,1.5]
[1641221261122,1.0174996,3820.0,3819.1,1.5]
[1641221261323,1.0174996,3820.0,3819.1,0.6795]
[1641221261523,0.87683193,3820.9,3819.1,0.6795]
[1641221261722,2.00479,3819.9,3819.1,0.6795]
[1641221261924,2.00479,3820.3,3819.2,2.93631099]
[1641221262125,9e-05,3820.3,3819.2,0.128157]
[1641221262323,0.87683193,3821.5,3819.7,1.5]
[1641221262525,0.87683193,3821.5,3820.5,2.80772118]
[1641221262723,0.87683193,3821.5,3820.7,1.5]
[1641221262924,0.87683193,3821.5,3820.7,2.80764252]
[1641221263124,1.16645919,3821.8,3820.7,2.80764252]
[1641221263325,0.87683193,3822.2,3820.7,2.80764252]
[1641221263526,0.87683193,3822.2,3821.2,1.5]
[1641221263724,3.193e-05,3822.2,3822.1,4.00958]
[1641221263924,3.193e-05,3822.2,3822.1,4.767871]
[1641221264329,0.076609,3822.2,3822.1,4.53788]
[1641221264629,0.076609,3822.2,3822.1,0.48907158]
[1641221265027,0.076609,3822.2,3820.8,2.80760832]
[1641221265228,0.644009,3822.2,3820.8,1.5]
[1641221265427,0.644009,3822.2,3820.8,1.30760832]
[1641221265625,0.644009,3822.2,3821.7,2.00479]
[1641221266026,0.644009,3822.2,3821.7,1.26484182]
[1641221267528,2.00479,3822.6,3821.7,1.26484182]
[1641221267727,1.628157,3822.5,3821.7,1.26484182]
[1641221267928,2.345757,3822.5,3821.7,1.26484182]
[1641221268327,0.845757,3822.5,3821.7,1.26484182]
[1641221269130,0.128157,3822.5,3821.7,1.26484182]
[1641221269329,0.128157,3822.5,3821.7,1.39299882]
[1641221269930,0.128157,3822.5,3821.7,1.26484182]
[1641221271132,1.30780669,3822.4,3821.7,1.26484182]
[1641221271331,0.128157,3822.5,3821.7,1.26484182]
[1641221271932,0.128157,3822.5,3821.7,1.39299882]
[1641221272333,0.128157,3822.5,3821.7,1.26484182]
[1641221272932,1.5,3821.8,3820.2,32.4246]
[1641221273133,1.5,3821.2,3818.3,1.16124193]
[1641221273333,1.5,3821.2,3818.9,29.6932]
[1641221273334,0.6014,3821.2,3818.9,29.6932]
[1641221273732,2.00479,3821.1,3820.2,2.00479]
[1641221273931,0.128157,3821.0,3820.2,2.00479]
[1641221274533,0.128157,3821.0,3820.3,0.128157]
[1641221274734,2.00479,3821.1,3820.3,0.128157]
[1641221275133,3.04804487,3821.1,3820.3,0.128157]
[1641221275435,1.04325487,3821.1,3820.3,0.128157]
[1641221275634,1.04325487,3821.1,3821.0,4.00958]
[1641221275836,1.11986387,3821.1,3821.0,4.00958]
[1641221276135,1.04325487,3821.1,3820.3,0.128157]
[1641221276536,1.04325487,3821.1,3820.1,1.30784774]
[1641221277135,1.04325487,3821.1,3819.5,1.30805474]
[1641221277736,2.00479,3820.9,3820.1,2.00479]
[1641221279737,2.00479,3820.9,3819.7,2.00479]
[1641221280437,11.24,3820.8,3819.7,2.00479]
[1641221280637,1.30842613,3820.6,3819.7,2.00479]
[1641221281037,0.128157,3820.5,3819.7,2.00479]
[1641221281339,2.04437882,3820.5,3819.7,2.00479]
[1641221281537,2.04437882,3820.5,3819.8,0.128157]
[1641221282339,1.91622182,3820.5,3819.8,0.128157]
[1641221283741,1.91622182,3820.5,3820.4,2.00479]
[1641221283941,1.91622182,3820.5,3820.4,2.234781]
[1641221284341,1.91622182,3820.5,3820.4,2.00479]
[1641221284943,1.99283082,3820.5,3820.4,2.00479]
[1641221285142,1.91622182,3820.5,3820.4,2.00479]
[1641221285742,1.91622182,3820.5,3820.4,2.234781]
[1641221286743,1.99283082,3820.5,3820.4,2.00479]
[1641221287242,1.99283082,3820.5,3819.7,2.8834654]
[1641221287445,1.5,3820.4,3819.7,0.8786754]
[1641221287646,1.91622182,3820.5,3819.7,0.8786754]
[1641221287853,2.00479,3820.1,3819.7,1.0068324]
[1641221288048,2.00479,3820.1,3819.7,0.128157]
[1641221288646,3.13251182,3820.5,3819.7,0.128157]
[1641221288845,1.12772182,3820.5,3819.7,0.128157]
[1641221289847,0.128157,3820.4,3820.3,2.00479]
[1641221290047,0.204766,3820.4,3820.3,2.00479]
[1641221290248,0.076609,3820.4,3819.7,0.128157]
[1641221290648,1.12772182,3820.5,3819.7,0.128157]
[1641221291252,1.12772182,3820.5,3819.4,1.30809409]
[1641221291648,1.12772182,3820.5,3819.3,0.8786754]
[1641221291948,2.00479,3820.0,3819.3,0.8786754]
[1641221292149,2.76799,3820.0,3819.3,1.0068324]
[1641221292347,0.128157,3819.9,3819.3,1.0068324]
[1641221292549,0.128157,3819.9,3819.3,0.8786754]
[1641221293149,0.128157,3819.9,3819.2,2.00479]
[1641221293348,1.5,3819.6,3818.8,0.8786754]
[1641221293548,1.5,3818.9,3818.5,1.17209551]
[1641221293749,3.50479,3818.6,3817.5,2.00479]
[1641221293950,2.00479,3818.6,3817.5,2.00479]
[1641221294152,3.50479,3818.6,3817.5,2.00479]
[1641221294351,0.128157,3818.5,3817.5,2.00479]
[1641221295254,1.5,3817.9,3817.1,2.00479]
[1641221295461,1.30938554,3817.8,3817.1,2.00479]
[1641221295758,1.30938554,3817.8,3816.6,1.75906374]
[1641221295759,3.50479,3817.7,3816.6,1.75906374]
[1641221296158,1.5,3817.5,3816.6,1.75906374]
[1641221296358,0.128157,3817.4,3816.6,1.75906374]
[1641221296759,0.128157,3817.4,3816.0,2.93023878]
[1641221296957,1.5,3817.3,3816.0,2.93023878]
[1641221297159,1.5,3817.3,3815.5,0.5491]
[1641221297557,1.5,3817.3,3815.0,32.3236]
[1641221297558,1.5,3816.9,3815.1,1.30957588]
[1641221297758,2.00479,3815.8,3815.1,1.30957588]
[1641221297958,0.5658,3816.0,3815.2,0.128157]
[1641221298458,0.128157,3815.9,3815.1,1.30957588]
[1641221298659,0.128157,3815.9,3815.6,0.18396587]
[1641221298859,0.076609,3815.8,3815.6,0.18396587]
[1641221299059,1.65782845,3816.0,3815.6,0.18396587]
[1641221299758,2.00479,3815.8,3815.6,0.18396587]
[1641221299958,0.076609,3815.7,3815.2,0.18396587]
[1641221300359,0.128157,3815.6,3815.2,0.18396587]
[1641221301062,2.00479,3815.8,3815.2,0.18396587]
[1641221301260,2.00479,3815.8,3815.1,0.18396587]
[1641221302462,0.128157,3815.7,3815.1,0.18396587]
[1641221303062,2.00479,3815.8,3815.1,0.31212287]
[1641221303260,2.00479,3815.8,3815.1,1.06682287]
[1641221303463,2.00479,3815.8,3815.1,0.93866587]
[1641221303863,2.00479,3815.3,3815.1,0.7547]
[1641221304063,0.051017,3815.2,3815.1,0.7547]
[1641221304267,2.00479,3815.3,3815.1,0.984691]
[1641221304462,2.00479,3815.3,3815.1,0.7547]
[1641221304663,2.00479,3815.3,3814.4,2.78467035]
[1641221304664,2.00479,3815.3,3814.4,1.47486634]
[1641221305062,2.00479,3815.3,3814.5,0.128157]
[1641221305467,2.00479,3815.3,3814.5,1.30814588]
[1641221306164,2.00479,3815.3,3814.6,0.10329803]
[1641221306765,0.128157,3815.2,3814.6,0.10329803]
[1641221307363,0.128157,3815.2,3814.7,1.17998888]
[1641221307763,2.00479,3814.8,3814.7,1.17998888]
[1641221307966,2.00479,3814.8,3814.7,1.40997988]
[1641221308164,2.055807,3814.8,3814.7,1.17998888]
[1641221308367,2.00479,3814.8,3814.7,1.17998888]
[1641221308766,2.00479,3814.8,3814.7,0.229991]
[1641221308965,2.00479,3814.8,3814.4,1.17998888]
[1641221309566,2.00479,3814.8,3814.5,0.128157]
[1641221309765,2.00479,3814.8,3814.6,0.229991]
[1641221310166,2.055807,3814.8,3814.3,1.17998888]
[1641221310466,2.00479,3814.8,3814.3,1.17998888]
[1641221310667,2.00479,3814.8,3814.2,2.00479]
[1641221310668,3.23333099,3814.8,3814.7,0.13221247]
[1641221310866,3.36148799,3814.8,3814.7,0.13221247]
[1641221311068,3.41250499,3814.8,3814.7,0.13221247]
[1641221311266,3.23333099,3814.8,3814.7,0.13221247]
[1641221311469,3.23333099,3814.8,3814.4,1.17998888]
[1641221311470,1.22854099,3814.8,3814.4,1.17998888]
[1641221311669,1.22854099,3814.8,3814.5,0.128157]
[1641221311967,2.00479,3815.3,3814.6,1.5]
[1641221312167,2.00479,3815.3,3814.6,0.229991]
[1641221312368,2.00479,3815.3,3814.6,0.36220347]
[1641221313068,2.132947,3815.3,3814.6,0.36220347]
[1641221313267,2.132947,3815.3,3814.6,0.229991]
[1641221314267,2.00479,3815.3,3814.6,0.229991]
[1641221314968,2.00479,3815.3,3814.3,1.17998888]
[1641221315169,0.128157,3815.2,3814.2,2.00479]
[1641221316171,0.818757,3815.2,3814.2,2.00479]
[1641221317372,1.5,3815.0,3813.3,30.9885]
[1641221317570,1.5,3814.8,3813.0,33.67148799]
[1641221317769,3.44075936,3815.2,3813.0,1.31028799]
[1641221317970,2.00479,3814.3,3813.5,2.00479]
[1641221318168,2.50829,3814.3,3813.5,2.132947]
[1641221318369,0.128157,3814.2,3813.5,2.132947]
[1641221318777,1.628157,3814.2,3812.7,32.3343]
[1641221318976,1.5,3813.7,3810.3,1.57508888]
[1641221319172,1.5,3813.1,3811.4,1.31085308]
[1641221319371,0.7584,3813.1,3811.4,1.31085308]
[1641221319570,0.7584,3813.1,3810.5,63.2598]
[1641221319571,2.2584,3813.1,3810.5,63.2598]
[1641221319770,3.03247728,3813.1,3810.9,1.31102321]
[1641221320071,2.00479,3812.4,3811.5,2.00479]
[1641221320271,2.00479,3812.4,3811.6,0.128157]
[1641221320471,2.132947,3812.4,3811.6,0.128157]
[1641221320872,3.37286692,3812.4,3811.6,0.128157]
[1641221321170,3.37286692,3812.4,3811.5,2.00479]
[1641221322373,3.37286692,3812.4,3811.6,0.128157]
[1641221322570,3.37286692,3812.4,3811.5,2.00479]
[1641221322971,3.24470992,3812.4,3811.8,1.5]
[1641221323171,2.00479,3812.8,3812.3,1.31051122]
[1641221323373,31.9773,3813.9,3812.3,2.81051122]
[1641221323574,2.18081982,3815.0,3811.8,0.5928]
[1641221323575,2.18211407,3815.0,3812.8,1.5]
[1641221323774,2.18211407,3815.0,3813.1,1.5]
[1641221323975,2.00479,3814.3,3813.4,2.00479]
[1641221324374,2.00479,3814.3,3813.5,0.128157]
[1641221324575,2.132947,3814.3,3813.5,0.128157]
[1641221325175,2.132947,3814.3,3813.4,2.00479]
[1641221325376,2.942847,3814.3,3813.4,2.00479]
[1641221326777,2.942847,3814.3,3811.8,31.3116]
[1641221326978,3.0,3813.9,3811.9,0.5491]
[1641221327581,1.5,3813.5,3811.9,0.5491]
[1641221327779,1.35581722,3813.5,3810.8,1.5]
[1641221327980,2.00479,3813.3,3812.5,2.00479]
[1641221328179,0.128157,3813.2,3812.5,2.00479]
[1641221328580,0.128157,3813.2,3812.5,2.132947]
[1641221329183,0.84331722,3813.5,3812.7,1.5]
[1641221329381,2.55389,3814.3,3812.7,0.7779]
[1641221329580,1.5,3813.7,3812.7,0.7779]
[1641221329783,0.5265,3813.7,3812.1,2.00479]
[1641221329983,2.00479,3812.7,3812.1,2.00479]
[1641221330182,2.73889,3812.7,3812.1,2.00479]
[1641221330481,0.7341,3812.7,3812.1,2.00479]
[1641221330684,0.7341,3812.7,3812.2,0.128157]
[1641221331083,2.00479,3813.1,3812.2,0.128157]
[1641221331687,2.00479,3813.1,3812.1,2.00479]
[1641221331886,2.78189,3813.1,3812.1,2.00479]
[1641221332985,3.6105239,3813.1,3812.1,2.00479]
[1641221333385,3.6105239,3813.1,3812.2,1.5]
[1641221333586,3.6105239,3813.1,3812.3,0.128157]
[1641221333784,0.128157,3813.0,3812.3,0.128157]
[1641221333985,0.128157,3813.0,3812.5,2.00479]
[1641221334789,1.00549296,3814.0,3812.9,1.5]
[1641221334987,0.94355827,3815.4,3813.3,1.5]
[1641221335187,0.78633436,3815.2,3813.3,0.6502]
[1641221335587,0.78633436,3815.2,3813.3,1.1993]
[1641221335788,1.5,3815.0,3813.3,1.1993]
[1641221335990,3.50479,3815.0,3814.2,2.00479]
[1641221336189,0.128157,3814.9,3814.2,2.00479]
[1641221336990,0.82829754,3814.9,3814.2,2.00479]
[1641221337590,0.82829754,3814.9,3814.2,0.2246517]
[1641221337792,0.82829754,3814.9,3813.8,2.00479]
[1641221337991,2.00479,3814.6,3813.8,2.00479]
[1641221338191,2.00479,3814.6,3813.4,2.00479]
[1641221338192,2.58199,3814.6,3813.4,2.00479]
[1641221338792,2.58199,3814.6,3812.2,63.9869]
[1641221338992,0.5491,3814.2,3812.3,1.5]
[1641221339192,2.58199,3814.6,3812.3,1.5]
[1641221339394,2.58199,3814.6,3812.2,32.6551]
[1641221339592,2.58199,3814.6,3812.3,1.5]
[1641221339993,2.00479,3813.5,3812.7,3.50479]
[1641221340195,2.00479,3813.5,3812.8,0.128157]
[1641221340395,1.00479,3813.5,3812.8,0.128157]
[1641221340594,2.58199,3814.6,3813.1,1.5]
[1641221340795,2.58199,3814.6,3812.8,0.128157]
[1641221340996,3.46216123,3814.6,3812.8,0.677257]
[1641221342097,3.46216123,3814.6,3812.5,29.8157]
[1641221342098,1.5,3814.0,3812.5,29.8157]
[1641221342296,3.0,3814.4,3811.4,1.5]
[1641221342496,3.0,3814.4,3811.8,32.3062]
[1641221342898,3.0,3814.4,3811.8,33.8062]
[1641221343097,74.07329,3814.6,3811.8,33.8062]
[1641221343298,62.83329,3814.6,3811.8,33.8062]
[1641221343498,62.83329,3814.6,3812.0,2.28698838]
[1641221343699,62.83329,3814.6,3812.6,1.5]
[1641221343899,62.83329,3814.6,3812.7,1.5]
[1641221343900,32.96259,3814.6,3812.7,1.5]
[1641221344098,2.00479,3813.8,3812.9,2.00479]
[1641221344298,2.00479,3813.8,3813.0,0.128157]
[1641221345402,2.00479,3814.6,3813.0,0.128157]
[1641221345602,2.00479,3814.6,3813.5,1.5]
[1641221345802,2.00479,3814.6,3813.7,1.5]
[1641221346002,2.00479,3814.6,3814.0,2.00479]
[1641221346204,2.00479,3815.3,3814.0,3.50479]
[1641221346503,2.00479,3815.3,3814.0,2.00479]
[1641221347304,1.5,3815.2,3814.0,2.00479]
[1641221347504,0.6569,3815.2,3814.0,2.00479]
[1641221347705,2.1569,3815.2,3814.0,2.00479]
[1641221348608,2.1569,3815.2,3814.1,1.1472411]
[1641221348609,1.47386568,3814.2,3814.1,1.1472411]
[1641221348807,1.47386568,3814.2,3814.1,1.5053891]
[1641221349007,2.20832667,3814.7,3814.1,1.5053891]
[1641221349612,2.20832667,3814.7,3814.1,0.63503668]
[1641221350111,0.55629005,3814.2,3814.1,1.81502556]
[1641221350315,2.20832667,3815.0,3814.1,3.31502556]
[1641221350514,2.20832667,3815.0,3814.7,1.5]
[1641221350710,2.667e-05,3815.0,3814.8,0.229991]
[1641221350910,2.94443556,3815.3,3814.9,1.43774489]
[1641221351110,2.94443556,3815.3,3814.9,0.128157]
[1641221351915,2.94443556,3816.0,3814.9,0.128157]
[1641221352117,2.94443556,3816.0,3815.2,4.00958]
[1641221352718,3.05061954,3816.1,3815.8,1.5]
[1641221352916,4.41665334,3817.1,3816.0,2.80895021]
[1641221353117,4.16614672,3817.7,3817.0,1.30881829]
[1641221353317,9.6518653,3818.2,3817.0,0.5514]
[1641221353519,4.4329471,3817.6,3817.0,0.5514]
[1641221353817,3.06353484,3817.6,3817.5,1.5]
[1641221354018,5.48571858,3818.8,3817.5,4.239571]
[1641221354317,5.48571858,3818.8,3818.7,1.5]
[1641221354543,6.40000501,3819.4,3818.7,2.2791]
[1641221354720,2.00479,3820.0,3818.9,1.5]
[1641221355017,5.54808663,3821.4,3818.7,0.7791]
[1641221355218,5.54808663,3821.4,3819.3,1.5]
[1641221355418,5.54808663,3821.4,3818.9,1.16000815]
[1641221355719,35.50061201,3823.0,3819.3,1.5]
[1641221355917,1.5,3820.8,3818.9,1.16000815]
[1641221356120,2.00479,3821.1,3819.8,2.00479]
[1641221356319,5.00479,3821.1,3818.1,31.3027]
[1641221356518,1.5,3820.5,3818.0,1.39235185]
[1641221356719,1.5,3820.7,3818.0,1.39235185]
[1641221356920,1.5,3820.7,3818.1,4.189304]
[1641221357222,1.5,3820.6,3818.1,4.189304]
[1641221357418,2.0532,3820.6,3818.1,4.189304]
[1641221357621,0.5532,3820.6,3818.1,4.189304]
[1641221357820,2.0532,3820.6,3818.1,4.189304]
[1641221358021,2.00479,3820.4,3819.5,2.00479]
[1641221358220,0.128157,3820.3,3819.6,0.128157]
[1641221358821,0.128157,3820.3,3819.5,2.00479]
[1641221360023,3.50479,3819.6,3818.7,2.00479]
[1641221360225,0.128157,3819.5,3817.7,0.87130145]
[1641221360526,1.5,3818.8,3817.7,0.87130145]
[1641221360823,1.5,3818.4,3817.7,0.87130145]
[1641221361028,1.5,3817.8,3816.6,0.87130145]
[1641221361225,1.5,3817.4,3816.6,0.87130145]
[1641221361425,1.5,3817.4,3816.7,0.128157]
[1641221361623,1.5,3817.0,3816.7,0.128157]
[1641221361825,1.5,3816.8,3816.6,0.87130145]
[1641221362025,3.50479,3816.7,3815.7,2.00479]
[1641221362225,2.00479,3816.7,3815.4,0.87130145]
[1641221362926,2.00479,3816.7,3813.7,3.62973812]
[1641221362927,2.00479,3816.7,3814.5,0.87130145]
[1641221363223,2.91003695,3816.7,3814.5,0.87130145]
[1641221364027,2.91003695,3816.7,3815.6,2.00479]
[1641221364230,2.91003695,3816.7,3815.6,2.68799]
[1641221366030,2.91003695,3816.7,3816.2,1.5]
[1641221366228,2.91003695,3816.7,3816.1,2.00479]
[1641221366229,0.90524695,3816.7,3816.3,0.128157]
[1641221366431,30.11010506,3818.4,3816.3,0.128157]
[1641221367031,1.5,3818.2,3816.3,0.128157]
[1641221367231,2.3358,3818.2,3816.3,0.128157]
[1641221367433,0.8358,3818.2,3816.3,0.128157]
[1641221367831,1.5,3818.1,3816.3,0.128157]
[1641221368033,2.00479,3817.7,3816.8,2.00479]
[1641221368233,0.128157,3817.6,3816.8,2.00479]
[1641221368632,2.00479,3817.7,3816.8,2.00479]
[1641221369634,3.23760725,3817.7,3816.8,2.00479]
[1641221370238,0.128157,3817.6,3816.8,2.00479]
[1641221370834,3.23760725,3817.7,3816.8,2.00479]
[1641221370835,3.23760725,3817.7,3816.8,3.31376762]
[1641221371638,3.23760725,3817.7,3816.8,2.00479]
[1641221372036,1.23281725,3817.7,3817.2,2.00479]
[1641221372239,0.128157,3817.6,3817.2,2.00479]
[1641221372439,0.960457,3817.6,3817.2,2.00479]
[1641221372840,0.8323,3817.6,3817.2,2.00479]
[1641221374040,1.23281725,3817.7,3817.4,2.00479]
[1641221374241,2.00479,3818.6,3817.5,0.229991]
[1641221375243,2.93914497,3818.6,3817.5,0.229991]
[1641221375844,0.93435497,3818.6,3817.5,0.229991]
[1641221376043,0.93435497,3818.6,3818.0,2.00479]
[1641221376243,0.128157,3818.5,3818.0,2.00479]
[1641221378145,1.5,3818.4,3817.4,2.00479]
[1641221378345,1.5,3818.3,3816.8,0.87130145]
[1641221378743,1.30919012,3818.4,3816.8,0.87130145]
[1641221378944,0.128157,3818.5,3816.8,0.87130145]
[1641221379344,0.93435497,3818.6,3817.2,1.30885256]
[1641221380145,0.93435497,3818.6,3817.5,2.00479]
[1641221382153,0.93435497,3818.6,3817.9,2.00479]
[1641221382348,2.00479,3819.0,3818.0,0.128157]
[1641221383050,2.00479,3819.0,3817.9,3.31339763]
[1641221383248,2.00479,3819.0,3817.9,2.00479]
[1641221383249,2.77449,3819.0,3817.9,2.00479]
[1641221384049,2.77449,3819.0,3818.4,2.00479]
[1641221384249,0.128157,3818.9,3818.4,2.00479]
[1641221385450,0.128157,3818.9,3818.4,2.132947]
[1641221385655,2.86498825,3819.0,3818.4,2.132947]
[1641221386053,0.86019825,3819.0,3818.9,2.00479]
[1641221386252,0.91121525,3819.0,3818.9,2.00479]
[1641221387655,0.86019825,3819.0,3818.9,2.234781]
[1641221387855,0.86019825,3819.0,3818.9,2.00479]
[1641221388055,0.96531637,3819.6,3818.9,2.00479]
[1641221388260,2.00479,3819.7,3818.9,2.00479]
[1641221388458,2.00479,3820.2,3818.9,2.00479]
[1641221389859,0.8708967,3820.9,3818.9,2.00479]
[1641221389860,0.8708967,3820.9,3819.9,1.30793498]
[1641221390058,33.73140366,3821.2,3819.9,2.13393498]
[1641221390260,2.00479,3821.4,3820.5,2.00479]
[1641221390459,0.128157,3821.3,3820.5,2.00479]
[1641221391661,1.628157,3821.3,3820.5,2.00479]
[1641221391859,0.632257,3821.3,3820.5,2.00479]
[1641221392861,1.5,3821.1,3820.5,2.00479]
[1641221394164,1.5,3820.9,3820.5,2.00479]
[1641221394364,0.632257,3821.3,3820.1,2.00479]
[1641221394564,1.5,3820.2,3818.5,30.74460145]
[1641221394765,2.333,3820.2,3818.5,0.87130145]
[1641221394964,0.833,3820.2,3818.5,0.87130145]
[1641221395364,1.5,3820.1,3818.5,0.87130145]
[1641221395566,1.3821,3820.2,3818.5,0.87130145]
[1641221395765,11.24,3820.1,3818.5,0.87130145]
[1641221395965,11.24,3820.1,3817.9,1.42680854]
[1641221396167,2.00479,3819.6,3818.7,2.00479]
[1641221396367,0.128157,3819.5,3818.7,2.00479]
[1641221397067,0.128157,3819.5,3818.7,2.132947]
[1641221397668,0.128157,3819.5,3818.7,2.00479]
[1641221400074,0.128157,3819.5,3818.8,0.128157]
[1641221400274,2.00479,3819.6,3818.8,0.128157]
[1641221400477,32.2495967,3820.7,3819.4,1.30809238]
[1641221400679,0.8708967,3820.7,3819.4,1.30809238]
[1641221400878,0.8708967,3820.7,3818.8,0.128157]
[1641221401079,1.4116967,3820.7,3818.8,0.128157]
[1641221401484,1.4116967,3820.7,3819.0,1.30822073]
[1641221401880,0.5408,3820.7,3819.0,1.30822073]
[1641221402280,2.00479,3820.6,3819.8,2.00479]
[1641221402480,0.128157,3820.5,3819.8,2.00479]
[1641221405186,0.128157,3820.5,3819.8,2.132947]